[Event "Late-Titled-Tuesday-Blitz-March-19-2024"]
[Site "Chess.com"]
[Date "2024.03.19"]
[Round "3"]
[White "Zhigalko_Sergei"]
[Black "mbachez"]
[Result "0-1"]
[WhiteElo "2871"]
[BlackElo "2654"]
[TimeControl "180+1"]
[EndTime "14:28:50 PDT"]
[Termination "mbachez won on time"]

1. g4 {[%clk 0:03:00.9]} 1... e5 {[%clk 0:02:55.9]} 2. Bg2 {[%clk 0:02:55.8]}
2... Nc6 {[%clk 0:02:55.2]} 3. c4 {[%clk 0:02:55.1]} 3... Bc5 {[%clk 0:02:45.4]}
4. e3 {[%clk 0:02:53.8]} 4... h6 {[%clk 0:02:39.4]} 5. Nc3 {[%clk 0:02:48.9]}
5... Nf6 {[%clk 0:02:39.2]} 6. h3 {[%clk 0:02:46.5]} 6... O-O {[%clk 0:02:36.4]}
7. Nge2 {[%clk 0:02:44.9]} 7... Re8 {[%clk 0:02:35.8]} 8. O-O {[%clk 0:02:38.8]}
8... d6 {[%clk 0:02:33.7]} 9. d4 {[%clk 0:02:36]} 9... Bb6 {[%clk 0:02:33.8]}
10. a3 {[%clk 0:02:19.9]} 10... a6 {[%clk 0:02:33.4]} 11. b4 {[%clk 0:02:19.1]}
11... Ba7 {[%clk 0:02:28.9]} 12. Bb2 {[%clk 0:02:00.5]} 12... exd4 {[%clk
0:02:10.5]} 13. exd4 {[%clk 0:01:55.6]} 13... Ne7 {[%clk 0:02:10.6]} 14. c5
{[%clk 0:01:49.7]} 14... c6 {[%clk 0:02:06.1]} 15. Nf4 {[%clk 0:01:25.1]} 15...
Bb8 {[%clk 0:02:03.7]} 16. Nce2 {[%clk 0:01:12.6]} 16... Ned5 {[%clk 0:01:54.3]}
17. Nxd5 {[%clk 0:00:55]} 17... Nxd5 {[%clk 0:01:53.9]} 18. Qd2 {[%clk
0:00:47.2]} 18... dxc5 {[%clk 0:01:46.4]} 19. dxc5 {[%clk 0:00:45.4]} 19... Nf4
{[%clk 0:01:37.2]} 20. Nd4 {[%clk 0:00:27.5]} 20... Re2 {[%clk 0:01:00.7]} 21.
Qc3 {[%clk 0:00:05.8]} 21... Be5 {[%clk 0:00:58.2]} 22. Rad1 {[%clk 0:00:04.3]}
22... Rxb2 {[%clk 0:00:37.1]} 23. Qxb2 {[%clk 0:00:04]} 23... Bxd4 {[%clk
0:00:37.3]} 24. Kh1 {[%clk 0:00:03.4]} 24... Ne6 {[%clk 0:00:26.6]} 25. Qb3
{[%clk 0:00:02.6]} 25... Qh4 {[%clk 0:00:20.1]} 26. f4 {[%clk 0:00:02.7]} 26...
Bf6 {[%clk 0:00:17]} 27. f5 {[%clk 0:00:02.6]} 27... Ng5 {[%clk 0:00:16.6]} 28.
Rfe1 {[%clk 0:00:02.5]} 28... Kh7 {[%clk 0:00:15.9]} 29. Re8 {[%clk 0:00:01.8]}
29... Be6 {[%clk 0:00:15]} 30. Rxe6 {[%clk 0:00:01.1]} 30... fxe6 {[%clk
0:00:14.7]} 31. fxe6 {[%clk 0:00:02]} 31... Re8 {[%clk 0:00:14.5]} 32. Qd3+
{[%clk 0:00:01.7]} 32... Kh8 {[%clk 0:00:14.1]} 33. Qg6 {[%clk 0:00:01.9]} 33...
Rxe6 {[%clk 0:00:11.9]} 34. Qf5 {[%clk 0:00:02]} 34... Re7 {[%clk 0:00:11.8]}
35. Qc8+ {[%clk 0:00:01.8]} 35... Kh7 {[%clk 0:00:11.3]} 36. Qf5+ {[%clk
0:00:02.7]} 36... Kg8 {[%clk 0:00:10.6]} 37. Rd8+ {[%clk 0:00:02.3]} 37... Kf7
{[%clk 0:00:10.1]} 38. Bd5+ {[%clk 0:00:02.2]} 38... cxd5 {[%clk 0:00:09.6]} 39.
Qxd5+ {[%clk 0:00:03.1]} 39... Kg6 {[%clk 0:00:09.7]} 40. Qf5+ {[%clk
0:00:03.1]} 40... Kf7 {[%clk 0:00:10.2]} 41. Qd5+ {[%clk 0:00:03.6]} 41... Ne6
{[%clk 0:00:10.8]} 42. Rb8 {[%clk 0:00:03]} 42... Qxh3+ {[%clk 0:00:10.9]} 43.
Kg1 {[%clk 0:00:03.2]} 43... Qxg4+ {[%clk 0:00:11.4]} 44. Kh1 {[%clk 0:00:03.9]}
44... Qh3+ {[%clk 0:00:11.7]} 45. Kg1 {[%clk 0:00:04.1]} 45... Bd4+ {[%clk
0:00:11.7]} 46. Qxd4 {[%clk 0:00:04.1]} 46... Nxd4 {[%clk 0:00:12]} 47. Rf8+
{[%clk 0:00:04.8]} 47... Kxf8 {[%clk 0:00:12.2]} 0-1

[Event "Late-Titled-Tuesday-Blitz-March-19-2024"]
[Site "Chess.com"]
[Date "2024.03.19"]
[Round "3"]
[White "chess94cu"]
[Black "Vaathi_Coming"]
[Result "0-1"]
[WhiteElo "2643"]
[BlackElo "2889"]
[TimeControl "180+1"]
[EndTime "14:28:51 PDT"]
[Termination "Vaathi_Coming won by resignation"]

1. e4 {[%clk 0:03:00.9]} 1... c5 {[%clk 0:02:58.1]} 2. Nf3 {[%clk 0:03:01.5]}
2... d6 {[%clk 0:02:56.2]} 3. d4 {[%clk 0:03:01.6]} 3... cxd4 {[%clk 0:02:56.5]}
4. Nxd4 {[%clk 0:03:02.5]} 4... Nf6 {[%clk 0:02:55.7]} 5. Nc3 {[%clk 0:03:03.2]}
5... a6 {[%clk 0:02:55.7]} 6. a4 {[%clk 0:03:03.1]} 6... e5 {[%clk 0:02:52.9]}
7. Nf3 {[%clk 0:03:02.3]} 7... h6 {[%clk 0:02:49.7]} 8. Be2 {[%clk 0:02:56.9]}
8... Be7 {[%clk 0:02:49.6]} 9. O-O {[%clk 0:02:57.6]} 9... O-O {[%clk
0:02:49.9]} 10. Nd2 {[%clk 0:02:58.4]} 10... Be6 {[%clk 0:02:38]} 11. Nc4 {[%clk
0:02:57.2]} 11... Qc7 {[%clk 0:02:35]} 12. Ne3 {[%clk 0:02:55.5]} 12... Nbd7
{[%clk 0:02:31.7]} 13. a5 {[%clk 0:02:39.8]} 13... Rfc8 {[%clk 0:02:19.8]} 14.
Bf3 {[%clk 0:02:39.6]} 14... b5 {[%clk 0:02:11.8]} 15. axb6 {[%clk 0:02:34.1]}
15... Nxb6 {[%clk 0:02:12]} 16. Bd2 {[%clk 0:02:26.4]} 16... Nfd7 {[%clk
0:01:39.2]} 17. Bg4 {[%clk 0:02:16]} 17... Bg5 {[%clk 0:01:33.5]} 18. Bxe6
{[%clk 0:02:15.3]} 18... fxe6 {[%clk 0:01:34.4]} 19. Qg4 {[%clk 0:02:15.7]}
19... Re8 {[%clk 0:01:34.1]} 20. h4 {[%clk 0:02:02.2]} 20... Nf6 {[%clk
0:01:33.6]} 21. Qg3 {[%clk 0:01:58.2]} 21... Bf4 {[%clk 0:01:30.6]} 22. Qg6
{[%clk 0:01:56.2]} 22... Nbd7 {[%clk 0:01:28.2]} 23. Ng4 {[%clk 0:01:44.5]}
23... Bxd2 {[%clk 0:01:25.3]} 24. Rfd1 {[%clk 0:01:28]} 24... Nxg4 {[%clk
0:01:16.8]} 25. Rxd2 {[%clk 0:01:22.4]} 25... Ngf6 {[%clk 0:01:12.2]} 26. Rad1
{[%clk 0:01:23]} 26... Nf8 {[%clk 0:01:07.4]} 27. Qg3 {[%clk 0:01:23.2]} 27...
Red8 {[%clk 0:01:05.9]} 28. Rd3 {[%clk 0:01:07.2]} 28... Rac8 {[%clk 0:01:03.3]}
29. Qf3 {[%clk 0:01:03.2]} 29... Ng6 {[%clk 0:00:56.7]} 30. g3 {[%clk 0:01:03]}
30... Ne7 {[%clk 0:00:57.4]} 31. Kg2 {[%clk 0:01:00.4]} 31... Nc6 {[%clk
0:00:57.1]} 32. Ne2 {[%clk 0:00:55.2]} 32... d5 {[%clk 0:00:51]} 33. exd5 {[%clk
0:00:52.6]} 33... exd5 {[%clk 0:00:51.9]} 34. Qf5 {[%clk 0:00:49]} 34... Qf7
{[%clk 0:00:46.5]} 35. Rc3 {[%clk 0:00:44.4]} 35... Ne4 {[%clk 0:00:33.1]} 36.
Qxf7+ {[%clk 0:00:40.4]} 36... Kxf7 {[%clk 0:00:34]} 37. Ra3 {[%clk 0:00:40.5]}
37... a5 {[%clk 0:00:30.5]} 38. f3 {[%clk 0:00:40.7]} 38... Nf6 {[%clk
0:00:28.2]} 39. Nc3 {[%clk 0:00:41.3]} 39... d4 {[%clk 0:00:26.2]} 40. Na4
{[%clk 0:00:33]} 40... Nd5 {[%clk 0:00:25.5]} 41. Kh3 {[%clk 0:00:28.8]} 41...
Ncb4 {[%clk 0:00:18.1]} 42. c3 {[%clk 0:00:29]} 42... Ne3 {[%clk 0:00:12.2]} 43.
Rg1 {[%clk 0:00:20]} 43... Nbc2 {[%clk 0:00:11.6]} 44. Rb3 {[%clk 0:00:18.8]}
44... d3 {[%clk 0:00:12.5]} 45. Rb7+ {[%clk 0:00:16.9]} 45... Kg8 {[%clk
0:00:12.6]} 46. Nb6 {[%clk 0:00:17.2]} 46... Rb8 {[%clk 0:00:11.5]} 47. Rd7
{[%clk 0:00:12.5]} 47... Rxd7 {[%clk 0:00:11.4]} 48. Nxd7 {[%clk 0:00:12.4]}
48... Rxb2 {[%clk 0:00:12.1]} 49. Nxe5 {[%clk 0:00:13.2]} 49... d2 {[%clk
0:00:12.7]} 50. Nc4 {[%clk 0:00:13.4]} 50... Nxc4 {[%clk 0:00:12.1]} 0-1

[Event "Late-Titled-Tuesday-Blitz-March-19-2024"]
[Site "Chess.com"]
[Date "2024.03.19"]
[Round "3"]
[White "dolynachess"]
[Black "Sacbutt"]
[Result "0-1"]
[WhiteElo "2504"]
[BlackElo "2328"]
[TimeControl "180+1"]
[EndTime "14:28:52 PDT"]
[Termination "Sacbutt won on time"]

1. d4 {[%clk 0:02:56.9]} 1... Nf6 {[%clk 0:02:59.7]} 2. c4 {[%clk 0:02:57.1]}
2... e6 {[%clk 0:03:00.1]} 3. g3 {[%clk 0:02:56.9]} 3... d5 {[%clk 0:02:59.4]}
4. Bg2 {[%clk 0:02:57.2]} 4... Be7 {[%clk 0:03:00.2]} 5. Nf3 {[%clk 0:02:57.7]}
5... O-O {[%clk 0:03:00.8]} 6. O-O {[%clk 0:02:58.3]} 6... Nbd7 {[%clk
0:02:59.6]} 7. Qd3 {[%clk 0:02:53.4]} 7... c5 {[%clk 0:02:55.9]} 8. cxd5 {[%clk
0:02:46.2]} 8... exd5 {[%clk 0:02:54.2]} 9. Nc3 {[%clk 0:02:46.1]} 9... b6
{[%clk 0:02:44.4]} 10. Rd1 {[%clk 0:02:40.3]} 10... Bb7 {[%clk 0:02:35.6]} 11.
Ne5 {[%clk 0:02:34.5]} 11... cxd4 {[%clk 0:02:13.5]} 12. Nxd7 {[%clk 0:02:07.3]}
12... Qxd7 {[%clk 0:02:13.9]} 13. Qxd4 {[%clk 0:02:07.1]} 13... Bc5 {[%clk
0:02:13.1]} 14. Qd3 {[%clk 0:01:55.2]} 14... d4 {[%clk 0:01:54.2]} 15. Bxb7
{[%clk 0:01:29.8]} 15... Qxb7 {[%clk 0:01:55.1]} 16. Na4 {[%clk 0:01:29]} 16...
Rfe8 {[%clk 0:01:47.8]} 17. Nxc5 {[%clk 0:01:26.4]} 17... bxc5 {[%clk
0:01:47.6]} 18. b3 {[%clk 0:01:26.9]} 18... Qe4 {[%clk 0:01:44.8]} 19. Qxe4
{[%clk 0:01:23.8]} 19... Rxe4 {[%clk 0:01:40.7]} 20. Kf1 {[%clk 0:01:21.7]}
20... Rae8 {[%clk 0:01:39.6]} 21. Rd2 {[%clk 0:01:19]} 21... R4e5 {[%clk
0:00:58.6]} 22. Bb2 {[%clk 0:01:13.2]} 22... Ne4 {[%clk 0:00:55.6]} 23. Rc2
{[%clk 0:01:12.7]} 23... Rf5 {[%clk 0:00:52.9]} 24. f3 {[%clk 0:01:12.7]} 24...
d3 {[%clk 0:00:44.6]} 25. exd3 {[%clk 0:01:08]} 25... Rxf3+ {[%clk 0:00:41.5]}
26. Kg2 {[%clk 0:01:08.3]} 26... Rxd3 {[%clk 0:00:38.1]} 27. Re1 {[%clk
0:00:51.1]} 27... f5 {[%clk 0:00:38.1]} 28. Ba3 {[%clk 0:00:50.5]} 28... Rc8
{[%clk 0:00:33.8]} 29. Rec1 {[%clk 0:00:39.6]} 29... Rd5 {[%clk 0:00:32]} 30. b4
{[%clk 0:00:29.7]} 30... Rd3 {[%clk 0:00:24.5]} 31. Bb2 {[%clk 0:00:22.3]} 31...
c4 {[%clk 0:00:23.4]} 32. Bc3 {[%clk 0:00:11]} 32... Kf7 {[%clk 0:00:20.3]} 33.
a4 {[%clk 0:00:10.1]} 33... g6 {[%clk 0:00:20.7]} 34. b5 {[%clk 0:00:08.8]}
34... Ke6 {[%clk 0:00:19.2]} 35. a5 {[%clk 0:00:07.5]} 35... Rc5 {[%clk
0:00:16.3]} 36. Be1 {[%clk 0:00:05.5]} 36... Rxb5 {[%clk 0:00:14.1]} 37. Rxc4
{[%clk 0:00:05.8]} 37... Rb2+ {[%clk 0:00:12.7]} 38. Kg1 {[%clk 0:00:04.7]}
38... Nd6 {[%clk 0:00:10.5]} 39. Rc7 {[%clk 0:00:03.8]} 39... Re3 {[%clk
0:00:08.5]} 40. Bf2 {[%clk 0:00:03]} 40... Ree2 {[%clk 0:00:08.5]} 41. Re1
{[%clk 0:00:03.6]} 41... Rxe1+ {[%clk 0:00:07.6]} 42. Bxe1 {[%clk 0:00:04.5]}
42... a6 {[%clk 0:00:05.7]} 43. Rc5 {[%clk 0:00:04.1]} 43... Rb5 {[%clk
0:00:05.4]} 44. Rc6 {[%clk 0:00:02.8]} 44... Kd5 {[%clk 0:00:05]} 45. Rxa6
{[%clk 0:00:02.6]} 45... Nc4 {[%clk 0:00:05.7]} 46. Ra7 {[%clk 0:00:01.7]} 46...
h5 {[%clk 0:00:05.7]} 47. a6 {[%clk 0:00:01.7]} 47... Kc6 {[%clk 0:00:05]} 48.
Ra8 {[%clk 0:00:01.6]} 48... Kb6 {[%clk 0:00:04.9]} 0-1

[Event "Late-Titled-Tuesday-Blitz-March-19-2024"]
[Site "Chess.com"]
[Date "2024.03.19"]
[Round "3"]
[White "Viktor_Poddubnyi"]
[Black "Koalaskakistis"]
[Result "1-0"]
[WhiteElo "2289"]
[BlackElo "2502"]
[TimeControl "180+1"]
[EndTime "14:28:52 PDT"]
[Termination "Viktor_Poddubnyi won by checkmate"]

1. e4 {[%clk 0:02:59]} 1... c5 {[%clk 0:02:54.5]} 2. Nf3 {[%clk 0:02:58.8]} 2...
Nc6 {[%clk 0:02:53.9]} 3. d4 {[%clk 0:02:59]} 3... cxd4 {[%clk 0:02:54.1]} 4.
Nxd4 {[%clk 0:02:59.9]} 4... e5 {[%clk 0:02:54.3]} 5. Nb5 {[%clk 0:02:59.7]}
5... a6 {[%clk 0:02:54.5]} 6. Nd6+ {[%clk 0:02:59.7]} 6... Bxd6 {[%clk
0:02:55.1]} 7. Qxd6 {[%clk 0:03:00.1]} 7... Qf6 {[%clk 0:02:55.7]} 8. Qd1 {[%clk
0:02:59.7]} 8... Qg6 {[%clk 0:02:55.1]} 9. Nc3 {[%clk 0:02:59.8]} 9... d5 {[%clk
0:02:52]} 10. Nxd5 {[%clk 0:02:44.8]} 10... Qxe4+ {[%clk 0:02:49.2]} 11. Be2
{[%clk 0:02:41.8]} 11... Nd4 {[%clk 0:02:37.8]} 12. Nc7+ {[%clk 0:02:32.6]}
12... Ke7 {[%clk 0:02:30.2]} 13. O-O {[%clk 0:01:14.4]} 13... Qxe2 {[%clk
0:01:07.1]} 14. Nxa8 {[%clk 0:01:08.9]} 14... b5 {[%clk 0:00:59.9]} 15. Be3
{[%clk 0:01:01.6]} 15... Qxd1 {[%clk 0:00:53.6]} 16. Raxd1 {[%clk 0:00:59.2]}
16... Nxc2 {[%clk 0:00:52.1]} 17. Nb6 {[%clk 0:00:56.2]} 17... Be6 {[%clk
0:00:41.6]} 18. Bc5+ {[%clk 0:00:56]} 18... Kf6 {[%clk 0:00:32.1]} 19. Rd2
{[%clk 0:00:53.3]} 19... Nd4 {[%clk 0:00:30.8]} 20. Bxd4 {[%clk 0:00:50.8]}
20... exd4 {[%clk 0:00:30.7]} 21. Rxd4 {[%clk 0:00:51.7]} 21... Ne7 {[%clk
0:00:30.9]} 22. Nd7+ {[%clk 0:00:46.5]} 22... Bxd7 {[%clk 0:00:29.4]} 23. Rxd7
{[%clk 0:00:46]} 23... Rc8 {[%clk 0:00:29.1]} 24. Rd6+ {[%clk 0:00:43.8]} 24...
Kg5 {[%clk 0:00:22.7]} 25. Rxa6 {[%clk 0:00:41.8]} 25... Rc2 {[%clk 0:00:22]}
26. b3 {[%clk 0:00:40.5]} 26... Nd5 {[%clk 0:00:18.9]} 27. Ra5 {[%clk
0:00:36.9]} 27... Nc3 {[%clk 0:00:19.2]} 28. a4 {[%clk 0:00:34.3]} 28... Rb2
{[%clk 0:00:18.7]} 29. axb5 {[%clk 0:00:23.4]} 29... Rxb3 {[%clk 0:00:19.2]} 30.
Ra7 {[%clk 0:00:17.9]} 30... Kg6 {[%clk 0:00:18.8]} 31. Ra6+ {[%clk 0:00:16.9]}
31... f6 {[%clk 0:00:18.2]} 32. b6 {[%clk 0:00:17]} 32... Rb5 {[%clk 0:00:17.2]}
33. g3 {[%clk 0:00:15.9]} 33... Ne2+ {[%clk 0:00:15.5]} 34. Kg2 {[%clk
0:00:15.9]} 34... Nd4 {[%clk 0:00:16.2]} 35. Rd1 {[%clk 0:00:15.5]} 35... Nf5
{[%clk 0:00:16.1]} 36. Rd7 {[%clk 0:00:15.1]} 36... h6 {[%clk 0:00:14.4]} 37. b7
{[%clk 0:00:15.1]} 37... Rb2 {[%clk 0:00:11.5]} 38. Ra8 {[%clk 0:00:14.2]} 38...
Ne3+ {[%clk 0:00:12.1]} 39. Kf3 {[%clk 0:00:14.6]} 39... Nc4 {[%clk 0:00:11.9]}
40. b8=Q {[%clk 0:00:13.5]} 40... Ne5+ {[%clk 0:00:12.8]} 41. Kg2 {[%clk
0:00:12.3]} 41... Rxb8 {[%clk 0:00:13.5]} 42. Rxb8 {[%clk 0:00:12.3]} 42... Nxd7
{[%clk 0:00:14.2]} 43. Rb7 {[%clk 0:00:12.6]} 43... Ne5 {[%clk 0:00:15.1]} 44.
f4 {[%clk 0:00:12.2]} 44... Nf7 {[%clk 0:00:15.3]} 45. f5+ {[%clk 0:00:11.9]}
45... Kxf5 {[%clk 0:00:15.1]} 46. Rxf7 {[%clk 0:00:12.3]} 46... g6 {[%clk
0:00:15.7]} 47. Ra7 {[%clk 0:00:12.4]} 47... Kg5 {[%clk 0:00:16.6]} 48. Kf3
{[%clk 0:00:13.1]} 48... f5 {[%clk 0:00:17.5]} 49. h4+ {[%clk 0:00:13.1]} 49...
Kh5 {[%clk 0:00:17.4]} 50. Rf7 {[%clk 0:00:13.2]} 50... g5 {[%clk 0:00:16.9]}
51. hxg5 {[%clk 0:00:13.4]} 51... Kg6 {[%clk 0:00:17.8]} 52. Ra7 {[%clk
0:00:12.8]} 52... hxg5 {[%clk 0:00:18.7]} 53. Ra6+ {[%clk 0:00:12.8]} 53... Kh5
{[%clk 0:00:18.8]} 54. Rf6 {[%clk 0:00:13]} 54... f4 {[%clk 0:00:17.3]} 55. g4+
{[%clk 0:00:13.2]} 55... Kh4 {[%clk 0:00:17.4]} 56. Rh6# {[%clk 0:00:13.7]} 1-0

[Event "Late-Titled-Tuesday-Blitz-March-19-2024"]
[Site "Chess.com"]
[Date "2024.03.19"]
[Round "3"]
[White "AlexPapasimakopoulos"]
[Black "Vladimir_Zakhartsov"]
[Result "0-1"]
[WhiteElo "2749"]
[BlackElo "2987"]
[TimeControl "180+1"]
[EndTime "14:28:53 PDT"]
[Termination "Vladimir_Zakhartsov won by resignation"]

1. d4 {[%clk 0:03:00.9]} 1... Nf6 {[%clk 0:02:59.4]} 2. c4 {[%clk 0:02:54]} 2...
e6 {[%clk 0:02:59.1]} 3. Nc3 {[%clk 0:02:50.7]} 3... Bb4 {[%clk 0:02:51.4]} 4.
Qc2 {[%clk 0:02:50.6]} 4... d5 {[%clk 0:02:43.7]} 5. cxd5 {[%clk 0:02:50.4]}
5... exd5 {[%clk 0:02:43.9]} 6. Bg5 {[%clk 0:02:50.1]} 6... h6 {[%clk 0:02:44]}
7. Bxf6 {[%clk 0:02:49.9]} 7... Qxf6 {[%clk 0:02:44.1]} 8. e3 {[%clk 0:02:50.5]}
8... c6 {[%clk 0:02:38]} 9. Bd3 {[%clk 0:02:49.7]} 9... O-O {[%clk 0:02:36.4]}
10. Nf3 {[%clk 0:02:48.5]} 10... Bd6 {[%clk 0:02:34.1]} 11. O-O-O {[%clk
0:02:34.5]} 11... a5 {[%clk 0:02:18.6]} 12. Kb1 {[%clk 0:02:34.2]} 12... Na6
{[%clk 0:02:17.9]} 13. a3 {[%clk 0:02:28.1]} 13... Qd8 {[%clk 0:02:05.2]} 14. e4
{[%clk 0:02:24.5]} 14... dxe4 {[%clk 0:02:05.2]} 15. Nxe4 {[%clk 0:02:24.5]}
15... Be6 {[%clk 0:02:05.1]} 16. Ne5 {[%clk 0:02:15]} 16... a4 {[%clk
0:01:53.5]} 17. Bc4 {[%clk 0:01:46.2]} 17... Nc7 {[%clk 0:01:42.6]} 18. Bxe6
{[%clk 0:01:23.9]} 18... Nxe6 {[%clk 0:01:43.5]} 19. g3 {[%clk 0:01:20.7]} 19...
Nc7 {[%clk 0:01:23.4]} 20. f4 {[%clk 0:01:17.4]} 20... Nd5 {[%clk 0:01:23.6]}
21. Nxd6 {[%clk 0:01:16.9]} 21... Qxd6 {[%clk 0:01:22.8]} 22. Qc5 {[%clk
0:01:17.1]} 22... Qe6 {[%clk 0:01:10.6]} 23. Rhe1 {[%clk 0:01:14.6]} 23... Qf5+
{[%clk 0:01:08.8]} 24. Qc2 {[%clk 0:01:13.2]} 24... Qxc2+ {[%clk 0:01:01.7]} 25.
Kxc2 {[%clk 0:01:14.1]} 25... Rfd8 {[%clk 0:00:55.8]} 26. Nd3 {[%clk 0:01:11.2]}
26... b6 {[%clk 0:00:52.1]} 27. Nb4 {[%clk 0:01:05.2]} 27... Nf6 {[%clk
0:00:37.9]} 28. Re3 {[%clk 0:00:45.7]} 28... Rd6 {[%clk 0:00:37]} 29. Rc3 {[%clk
0:00:45.1]} 29... Rc8 {[%clk 0:00:20.8]} 30. Re3 {[%clk 0:00:40.7]} 30... Kf8
{[%clk 0:00:13.2]} 31. Re2 {[%clk 0:00:31.6]} 31... c5 {[%clk 0:00:12.4]} 32.
Nd3 {[%clk 0:00:18.3]} 32... Rxd4 {[%clk 0:00:10.4]} 33. Ne5 {[%clk 0:00:17.2]}
33... Rxd1 {[%clk 0:00:06.6]} 34. Kxd1 {[%clk 0:00:18.1]} 34... Rd8+ {[%clk
0:00:04.5]} 35. Kc2 {[%clk 0:00:18.3]} 35... Rd6 {[%clk 0:00:04.3]} 36. Kc3
{[%clk 0:00:16]} 36... Rd4 {[%clk 0:00:04.7]} 37. Kc2 {[%clk 0:00:13.2]} 37...
g6 {[%clk 0:00:03.8]} 38. Nc6 {[%clk 0:00:13.1]} 38... Re4 {[%clk 0:00:03.9]}
39. Rxe4 {[%clk 0:00:12.6]} 39... Nxe4 {[%clk 0:00:04.3]} 40. Kd3 {[%clk
0:00:12.4]} 40... Nd6 {[%clk 0:00:04.7]} 41. Ne5 {[%clk 0:00:07.6]} 41... Ke7
{[%clk 0:00:04.5]} 42. Kc3 {[%clk 0:00:07.6]} 42... b5 {[%clk 0:00:03.5]} 43.
Kd3 {[%clk 0:00:07.9]} 43... Ke6 {[%clk 0:00:03.8]} 44. Nc6 {[%clk 0:00:07.2]}
44... Kd5 {[%clk 0:00:03.5]} 45. Ne7+ {[%clk 0:00:07.8]} 45... Ke6 {[%clk
0:00:04.1]} 46. Nc6 {[%clk 0:00:08.2]} 46... f6 {[%clk 0:00:04.7]} 47. Nd8+
{[%clk 0:00:06.9]} 47... Kd7 {[%clk 0:00:04.4]} 48. f5 {[%clk 0:00:05.4]} 48...
gxf5 {[%clk 0:00:04.1]} 0-1

[Event "Late-Titled-Tuesday-Blitz-March-19-2024"]
[Site "Chess.com"]
[Date "2024.03.19"]
[Round "3"]
[White "KuzubovYuriy"]
[Black "Leo_C"]
[Result "1-0"]
[WhiteElo "2905"]
[BlackElo "2646"]
[TimeControl "180+1"]
[EndTime "14:28:58 PDT"]
[Termination "KuzubovYuriy won on time"]

1. d4 {[%clk 0:03:00.9]} 1... Nf6 {[%clk 0:02:59.6]} 2. c4 {[%clk 0:03:01.5]}
2... e6 {[%clk 0:03:00]} 3. Nf3 {[%clk 0:03:01.9]} 3... d5 {[%clk 0:03:00.3]} 4.
Nc3 {[%clk 0:03:02.1]} 4... Bb4 {[%clk 0:02:59.6]} 5. Bg5 {[%clk 0:03:01.5]}
5... h6 {[%clk 0:02:59.2]} 6. Bxf6 {[%clk 0:03:01.8]} 6... Qxf6 {[%clk
0:03:00.1]} 7. e3 {[%clk 0:03:02.1]} 7... O-O {[%clk 0:02:56.7]} 8. Rc1 {[%clk
0:03:01.9]} 8... Nc6 {[%clk 0:02:56.6]} 9. cxd5 {[%clk 0:02:44.9]} 9... exd5
{[%clk 0:02:56.4]} 10. a3 {[%clk 0:02:45.6]} 10... Bxc3+ {[%clk 0:02:56.1]} 11.
Rxc3 {[%clk 0:02:46.5]} 11... Ne7 {[%clk 0:02:56.4]} 12. Ne5 {[%clk 0:02:37.8]}
12... c6 {[%clk 0:02:54.5]} 13. Qf3 {[%clk 0:02:34.1]} 13... Qxf3 {[%clk
0:02:46.5]} 14. Nxf3 {[%clk 0:02:32.6]} 14... Bf5 {[%clk 0:02:42.6]} 15. Kd2
{[%clk 0:02:30.7]} 15... Nc8 {[%clk 0:02:39]} 16. Ne5 {[%clk 0:02:29.4]} 16...
Nd6 {[%clk 0:02:37.6]} 17. Rc1 {[%clk 0:02:04.6]} 17... Rfe8 {[%clk 0:02:25.5]}
18. Bd3 {[%clk 0:01:56]} 18... Bxd3 {[%clk 0:02:23.7]} 19. Nxd3 {[%clk
0:01:53.8]} 19... Re7 {[%clk 0:02:17.3]} 20. g4 {[%clk 0:01:44.8]} 20... Rae8
{[%clk 0:02:06.9]} 21. h4 {[%clk 0:01:39.4]} 21... f6 {[%clk 0:01:14.3]} 22.
Rcg1 {[%clk 0:01:37.4]} 22... Kf7 {[%clk 0:01:11.4]} 23. Ke2 {[%clk 0:01:34.5]}
23... Ne4 {[%clk 0:01:10.3]} 24. h5 {[%clk 0:01:24.3]} 24... a5 {[%clk 0:01:08]}
25. a4 {[%clk 0:01:19.4]} 25... b5 {[%clk 0:00:58.8]} 26. Rc1 {[%clk 0:01:12.5]}
26... Re6 {[%clk 0:00:49.3]} 27. Ra1 {[%clk 0:01:10.4]} 27... Rb8 {[%clk
0:00:35.1]} 28. axb5 {[%clk 0:01:04.2]} 28... Rxb5 {[%clk 0:00:36]} 29. Rhc1
{[%clk 0:01:04.1]} 29... Ke8 {[%clk 0:00:25.2]} 30. f3 {[%clk 0:00:58.5]} 30...
Ng5 {[%clk 0:00:19.7]} 31. Rc3 {[%clk 0:00:54.5]} 31... Nf7 {[%clk 0:00:15.7]}
32. Rac1 {[%clk 0:00:49.5]} 32... Nd8 {[%clk 0:00:13.6]} 33. Kd2 {[%clk
0:00:47.6]} 33... Re7 {[%clk 0:00:13.3]} 34. Ra1 {[%clk 0:00:46.3]} 34... Reb7
{[%clk 0:00:09.2]} 35. Kc2 {[%clk 0:00:43.2]} 35... Re7 {[%clk 0:00:06.5]} 36.
Nc5 {[%clk 0:00:35.6]} 36... Nb7 {[%clk 0:00:06.6]} 37. Na4 {[%clk 0:00:30.8]}
37... Nd6 {[%clk 0:00:05.9]} 38. b3 {[%clk 0:00:27]} 38... Nb7 {[%clk
0:00:03.6]} 39. Rb1 {[%clk 0:00:23.2]} 39... Nd8 {[%clk 0:00:02.6]} 40. Re1
{[%clk 0:00:22.9]} 40... Nb7 {[%clk 0:00:02.7]} 41. Rxc6 {[%clk 0:00:20.7]}
41... Nd8 {[%clk 0:00:02.9]} 42. Rc5 {[%clk 0:00:20.5]} 42... Reb7 {[%clk
0:00:01.8]} 43. Rxb5 {[%clk 0:00:20.3]} 43... Rxb5 {[%clk 0:00:02.7]} 44. Nc3
{[%clk 0:00:21.1]} 44... Rb7 {[%clk 0:00:02.3]} 45. Nxd5 {[%clk 0:00:21.6]}
45... Ne6 {[%clk 0:00:02.8]} 46. Ra1 {[%clk 0:00:21.1]} 46... Ra7 {[%clk
0:00:02.2]} 47. b4 {[%clk 0:00:20.3]} 47... a4 {[%clk 0:00:02.2]} 48. b5 {[%clk
0:00:20.8]} 48... Nd8 {[%clk 0:00:01.1]} 49. Nc3 {[%clk 0:00:21]} 49... a3
{[%clk 0:00:01.2]} 50. Kb3 {[%clk 0:00:21.6]} 50... Re7 {[%clk 0:00:01.3]} 51.
Nd5 {[%clk 0:00:20.5]} 51... Rd7 {[%clk 0:00:01.4]} 52. Nb4 {[%clk 0:00:20.7]}
52... Re7 {[%clk 0:00:01.6]} 53. e4 {[%clk 0:00:20.8]} 53... Rd7 {[%clk
0:00:01.9]} 54. d5 {[%clk 0:00:20.8]} 54... Rb7 {[%clk 0:00:02.6]} 55. Rxa3
{[%clk 0:00:15.9]} 55... Rxb5 {[%clk 0:00:02.6]} 56. Ra8 {[%clk 0:00:15.7]} 1-0